[Event "Betsys MČR v online bleskovém šachu 2021"]
[Site "Chess.com"]
[Date "2021.04.17"]
[Round "13"]
[White "RunningPawnz88"]
[Black "Molefancier"]
[Result "0-1"]
[WhiteElo "1332"]
[BlackElo "1094"]
[TimeControl "180+1"]
[EndTime "11:10:09 PDT"]
[Termination "Uživatel Molefancier zvítězil matem"]

1. d4 {[%clk 0:02:59.5]} 1... Nf6 {[%clk 0:02:58.6]} 2. c4 {[%clk 0:02:58.7]}
2... e6 {[%clk 0:02:58.3]} 3. Nc3 {[%clk 0:02:58.7]} 3... Bb4 {[%clk 0:02:57.9]}
4. Bd2 {[%clk 0:02:57.8]} 4... c5 {[%clk 0:02:56.6]} 5. dxc5 {[%clk 0:02:52.4]}
5... Bxc5 {[%clk 0:02:56.3]} 6. e3 {[%clk 0:02:50]} 6... Nc6 {[%clk 0:02:54]} 7.
Nf3 {[%clk 0:02:50.1]} 7... O-O {[%clk 0:02:52.5]} 8. Bd3 {[%clk 0:02:46.2]}
8... d5 {[%clk 0:02:49.2]} 9. cxd5 {[%clk 0:02:41.7]} 9... exd5 {[%clk
0:02:45.5]} 10. O-O {[%clk 0:02:37.9]} 10... Re8 {[%clk 0:02:40.7]} 11. Bb5
{[%clk 0:02:37.1]} 11... a6 {[%clk 0:02:36.2]} 12. Ba4 {[%clk 0:02:33.8]} 12...
Bg4 {[%clk 0:02:34.8]} 13. h3 {[%clk 0:02:23.3]} 13... Bh5 {[%clk 0:02:33.1]}
14. g4 {[%clk 0:02:21.6]} 14... Bg6 {[%clk 0:02:29.5]} 15. Qb3 {[%clk
0:02:11.7]} 15... Ne4 {[%clk 0:02:19.3]} 16. Nxe4 {[%clk 0:02:05.3]} 16... dxe4
{[%clk 0:02:19]} 17. Nd4 {[%clk 0:01:57.2]} 17... Bxd4 {[%clk 0:02:16.8]} 18.
exd4 {[%clk 0:01:56.1]} 18... Re7 {[%clk 0:02:08.6]} 19. Be3 {[%clk 0:01:40.5]}
19... b5 {[%clk 0:02:07.4]} 20. Bxb5 {[%clk 0:01:33.7]} 20... axb5 {[%clk
0:02:07]} 21. Qxb5 {[%clk 0:01:33.6]} 21... Nxd4 {[%clk 0:02:00.5]} 22. Rad1
{[%clk 0:01:27.6]} 22... Rd7 {[%clk 0:01:57.1]} 23. Qg5 {[%clk 0:01:11.1]} 23...
Nf3+ {[%clk 0:01:56.4]} 24. Kg2 {[%clk 0:01:01.9]} 24... Nxg5 {[%clk 0:01:56.5]}
25. Bxg5 {[%clk 0:01:00.7]} 25... Qc7 {[%clk 0:01:46.9]} 26. Bf4 {[%clk
0:00:55.2]} 26... Qc6 {[%clk 0:01:42.6]} 27. Rc1 {[%clk 0:00:52.3]} 27... Qf6
{[%clk 0:01:37.4]} 28. Be3 {[%clk 0:00:49.4]} 28... Rad8 {[%clk 0:01:34.3]} 29.
b4 {[%clk 0:00:43.9]} 29... h5 {[%clk 0:01:31.3]} 30. a4 {[%clk 0:00:43]} 30...
hxg4 {[%clk 0:01:29.3]} 31. hxg4 {[%clk 0:00:42.5]} 31... Qf3+ {[%clk
0:01:28.4]} 32. Kg1 {[%clk 0:00:40.7]} 32... Qxg4+ {[%clk 0:01:27.5]} 33. Kh2
{[%clk 0:00:41]} 33... Qh4+ {[%clk 0:01:24.4]} 34. Kg2 {[%clk 0:00:41.2]} 34...
Bf5 {[%clk 0:01:15.7]} 35. Rh1 {[%clk 0:00:38.6]} 35... Qg4+ {[%clk 0:01:12.8]}
36. Kf1 {[%clk 0:00:34.8]} 36... Rd2 {[%clk 0:01:09.3]} 37. Bxd2 {[%clk
0:00:31.9]} 37... Rxd2 {[%clk 0:01:04.5]} 38. Ke1 {[%clk 0:00:26.3]} 38... Qe2#
{[%clk 0:01:01.6]} 0-1

[Event "Betsys MČR v online bleskovém šachu 2021"]
[Site "Chess.com"]
[Date "2021.04.17"]
[Round "13"]
[White "MiroslavBucek"]
[Black "Smetanka674"]
[Result "0-1"]
[WhiteElo "1597"]
[BlackElo "1774"]
[TimeControl "180+1"]
[EndTime "11:10:11 PDT"]
[Termination "Uživatel Smetanka674 zvítězil po vzdání soupeře"]

1. e4 {[%clk 0:03:00.9]} 1... e6 {[%clk 0:02:59.2]} 2. d4 {[%clk 0:03:00.3]}
2... d5 {[%clk 0:02:59.5]} 3. Nc3 {[%clk 0:03:00.3]} 3... dxe4 {[%clk
0:02:58.6]} 4. Nxe4 {[%clk 0:02:59.7]} 4... Nd7 {[%clk 0:02:59.5]} 5. Nf3 {[%clk
0:02:59.2]} 5... Ngf6 {[%clk 0:02:59.6]} 6. Bg5 {[%clk 0:02:57.4]} 6... Be7
{[%clk 0:02:59.5]} 7. Bd3 {[%clk 0:02:57.1]} 7... b6 {[%clk 0:02:59.4]} 8. O-O
{[%clk 0:02:56.9]} 8... Bb7 {[%clk 0:02:59.5]} 9. Re1 {[%clk 0:02:56.8]} 9...
O-O {[%clk 0:02:57.9]} 10. c3 {[%clk 0:02:56.1]} 10... c5 {[%clk 0:02:55.4]} 11.
h3 {[%clk 0:02:49.2]} 11... h6 {[%clk 0:02:50.8]} 12. Bh4 {[%clk 0:02:48.9]}
12... Rc8 {[%clk 0:02:33.4]} 13. Rc1 {[%clk 0:02:45.7]} 13... cxd4 {[%clk
0:02:30.1]} 14. Nxd4 {[%clk 0:02:44.6]} 14... Nd5 {[%clk 0:02:14.8]} 15. Bxe7
{[%clk 0:02:43.4]} 15... Qxe7 {[%clk 0:02:14.3]} 16. Nb5 {[%clk 0:02:35]} 16...
a6 {[%clk 0:02:10.7]} 17. Nbd6 {[%clk 0:02:34.9]} 17... Rb8 {[%clk 0:02:09.2]}
18. Nxb7 {[%clk 0:02:34.6]} 18... Rxb7 {[%clk 0:02:09.2]} 19. Qf3 {[%clk
0:02:17.4]} 19... Ne5 {[%clk 0:01:59.2]} 20. Qg3 {[%clk 0:02:17.3]} 20... Nxd3
{[%clk 0:01:57]} 21. Qxd3 {[%clk 0:02:17.1]} 21... Rd8 {[%clk 0:01:54.6]} 22.
Qg3 {[%clk 0:02:15.1]} 22... Rbd7 {[%clk 0:01:46.3]} 23. Rcd1 {[%clk 0:02:06]}
23... Nf6 {[%clk 0:01:44.1]} 24. Nxf6+ {[%clk 0:02:03.3]} 24... Qxf6 {[%clk
0:01:43.7]} 25. Rxd7 {[%clk 0:02:02.9]} 25... Rxd7 {[%clk 0:01:41.6]} 26. Qb8+
{[%clk 0:02:01.8]} 26... Kh7 {[%clk 0:01:41.6]} 27. Qxb6 {[%clk 0:02:00.4]}
27... Rd2 {[%clk 0:01:32.8]} 28. Rf1 {[%clk 0:01:53.1]} 28... Qf4 {[%clk
0:01:30.6]} 29. Qxa6 {[%clk 0:01:44]} 29... Rxb2 {[%clk 0:01:28.6]} 30. a4
{[%clk 0:01:40.6]} 30... Ra2 {[%clk 0:01:24.8]} 31. Qd3+ {[%clk 0:01:29.4]}
31... g6 {[%clk 0:01:22.1]} 32. g3 {[%clk 0:01:19.7]} 32... Qxa4 {[%clk
0:01:19.9]} 33. Rc1 {[%clk 0:01:12.6]} 33... Qc6 {[%clk 0:01:17.6]} 34. c4
{[%clk 0:01:10.2]} 34... Qc5 {[%clk 0:01:10.5]} 35. Rc2 {[%clk 0:01:02.8]} 35...
Ra1+ {[%clk 0:01:07.2]} 36. Kg2 {[%clk 0:01:01.4]} 36... Qc6+ {[%clk 0:01:06.5]}
37. Qf3 {[%clk 0:00:58.1]} 37... Rg1+ {[%clk 0:01:05.1]} 38. Kxg1 {[%clk
0:00:52.9]} 38... Qxf3 {[%clk 0:01:04]} 39. Kh2 {[%clk 0:00:45.2]} 39... Qd3
{[%clk 0:01:02.3]} 40. Rc1 {[%clk 0:00:42.3]} 40... Qd2 {[%clk 0:01:02.4]} 41.
Rf1 {[%clk 0:00:37.7]} 41... Qd3 {[%clk 0:01:01.6]} 42. Kg2 {[%clk 0:00:35.2]}
42... Qxc4 {[%clk 0:01:00.3]} 0-1

[Event "Betsys MČR v online bleskovém šachu 2021"]
[Site "Chess.com"]
[Date "2021.04.17"]
[Round "13"]
[White "MaTpAt113"]
[Black "EDA16"]
[Result "1-0"]
[WhiteElo "933"]
[BlackElo "1041"]
[TimeControl "180+1"]
[EndTime "11:10:14 PDT"]
[Termination "Uživatel MaTpAt113 zvítězil matem"]

1. e4 {[%clk 0:03:00.9]} 1... e5 {[%clk 0:02:52.8]} 2. Nf3 {[%clk 0:02:59.7]}
2... Nc6 {[%clk 0:02:51.4]} 3. d4 {[%clk 0:02:58.7]} 3... exd4 {[%clk
0:02:50.3]} 4. Nxd4 {[%clk 0:02:58.1]} 4... Bc5 {[%clk 0:02:42.3]} 5. Be3 {[%clk
0:02:55.9]} 5... Bxd4 {[%clk 0:02:39.4]} 6. Bxd4 {[%clk 0:02:55.1]} 6... Nxd4
{[%clk 0:02:36.5]} 7. Qxd4 {[%clk 0:02:54.2]} 7... Nf6 {[%clk 0:02:36.4]} 8. Bc4
{[%clk 0:02:52.5]} 8... O-O {[%clk 0:02:34.8]} 9. e5 {[%clk 0:02:51.7]} 9... Nh5
{[%clk 0:02:28.8]} 10. O-O {[%clk 0:02:26.6]} 10... d6 {[%clk 0:02:24.5]} 11.
exd6 {[%clk 0:02:22.1]} 11... Qxd6 {[%clk 0:02:19]} 12. Qxd6 {[%clk 0:02:17.5]}
12... cxd6 {[%clk 0:02:18.4]} 13. Rd1 {[%clk 0:02:15.5]} 13... Rd8 {[%clk
0:02:08.9]} 14. Rd5 {[%clk 0:02:14.4]} 14... Nf6 {[%clk 0:02:07.2]} 15. Rd4
{[%clk 0:02:07.3]} 15... Bf5 {[%clk 0:02:05.5]} 16. Nc3 {[%clk 0:02:02.3]} 16...
Rac8 {[%clk 0:02:00.6]} 17. Bb3 {[%clk 0:01:53.8]} 17... a6 {[%clk 0:01:47.2]}
18. Rf4 {[%clk 0:01:50.6]} 18... Bg6 {[%clk 0:01:39.1]} 19. Re1 {[%clk
0:01:36.4]} 19... Re8 {[%clk 0:01:35.1]} 20. Rxe8+ {[%clk 0:01:29.3]} 20... Rxe8
{[%clk 0:01:34.5]} 21. h3 {[%clk 0:01:28.9]} 21... Nh5 {[%clk 0:01:31.7]} 22.
Rd4 {[%clk 0:01:10.1]} 22... Rd8 {[%clk 0:01:17.9]} 23. Nd5 {[%clk 0:00:59]}
23... Nf6 {[%clk 0:01:14.5]} 24. Ne7+ {[%clk 0:00:52]} 24... Kh8 {[%clk
0:01:11.1]} 25. Nxg6+ {[%clk 0:00:44.9]} 25... hxg6 {[%clk 0:01:05.5]} 26. Bxf7
{[%clk 0:00:43.6]} 26... Rf8 {[%clk 0:00:58.9]} 27. Bxg6 {[%clk 0:00:43.2]}
27... Kg8 {[%clk 0:00:52.5]} 28. Rxd6 {[%clk 0:00:42.1]} 28... Rc8 {[%clk
0:00:45.9]} 29. c4 {[%clk 0:00:38.6]} 29... b5 {[%clk 0:00:43.4]} 30. c5 {[%clk
0:00:37.4]} 30... Rxc5 {[%clk 0:00:40.5]} 31. Rd8+ {[%clk 0:00:37]} 31... Ne8
{[%clk 0:00:29.7]} 32. Rxe8# {[%clk 0:00:35.8]} 1-0

[Event "Betsys MČR v online bleskovém šachu 2021"]
[Site "Chess.com"]
[Date "2021.04.17"]
[Round "13"]
[White "OndrejBorkovec"]
[Black "handlovskyjachym"]
[Result "0-1"]
[WhiteElo "1500"]
[BlackElo "1394"]
[TimeControl "180+1"]
[EndTime "11:10:15 PDT"]
[Termination "Uživatel handlovskyjachym zvítězil po vzdání soupeře"]

1. e4 {[%clk 0:03:00.9]} 1... c5 {[%clk 0:02:59.4]} 2. Nc3 {[%clk 0:02:59.9]}
2... d6 {[%clk 0:02:59.2]} 3. f4 {[%clk 0:02:59.6]} 3... Nc6 {[%clk 0:02:54.9]}
4. Nf3 {[%clk 0:02:59.3]} 4... g6 {[%clk 0:02:53.8]} 5. g3 {[%clk 0:02:59.3]}
5... Bg4 {[%clk 0:02:52.1]} 6. Bg2 {[%clk 0:02:59.2]} 6... Nd4 {[%clk
0:02:51.1]} 7. O-O {[%clk 0:02:57.5]} 7... Bg7 {[%clk 0:02:45.5]} 8. d3 {[%clk
0:02:57.2]} 8... e5 {[%clk 0:02:42.9]} 9. fxe5 {[%clk 0:02:56.6]} 9... Bxe5
{[%clk 0:02:27.7]} 10. Qe1 {[%clk 0:02:52.2]} 10... Nxf3+ {[%clk 0:02:23.5]} 11.
Bxf3 {[%clk 0:02:52.2]} 11... Bh3 {[%clk 0:02:23.6]} 12. Rf2 {[%clk 0:02:51.6]}
12... Ne7 {[%clk 0:02:19.1]} 13. g4 {[%clk 0:02:49]} 13... O-O {[%clk
0:02:13.2]} 14. Qe3 {[%clk 0:02:48.8]} 14... f5 {[%clk 0:02:08.2]} 15. gxf5
{[%clk 0:02:45.3]} 15... gxf5 {[%clk 0:01:59.3]} 16. exf5 {[%clk 0:02:44.5]}
16... Nxf5 {[%clk 0:01:54]} 17. Qg5+ {[%clk 0:02:43.5]} 17... Qxg5+ {[%clk
0:01:52.5]} 18. Bxg5 {[%clk 0:02:42.8]} 18... Bd4 {[%clk 0:01:44.6]} 19. Bd5+
{[%clk 0:02:41.9]} 19... Kg7 {[%clk 0:01:39.4]} 20. Ne4 {[%clk 0:02:26.2]} 20...
Bxf2+ {[%clk 0:01:33.3]} 21. Kxf2 {[%clk 0:02:26]} 21... Ne7+ {[%clk 0:01:29.1]}
22. Ke3 {[%clk 0:02:24.3]} 22... Nxd5+ {[%clk 0:01:29.1]} 23. Kd2 {[%clk
0:02:23.5]} 23... Rf5 {[%clk 0:01:26.5]} 24. Rg1 {[%clk 0:02:22.2]} 24... Kh8
{[%clk 0:01:18.4]} 25. Nxd6 {[%clk 0:02:16.8]} 25... Rf2+ {[%clk 0:01:14.7]} 26.
Kd1 {[%clk 0:02:14.6]} 26... Rg8 {[%clk 0:01:10.5]} 27. Ke1 {[%clk 0:02:00.8]}
27... Rxc2 {[%clk 0:01:03.2]} 28. Nf7+ {[%clk 0:01:59.2]} 28... Kg7 {[%clk
0:00:56.1]} 29. Ne5 {[%clk 0:01:56.3]} 29... Rc1+ {[%clk 0:00:52.8]} 30. Kf2
{[%clk 0:01:55.5]} 30... Rxg1 {[%clk 0:00:52.2]} 31. Kxg1 {[%clk 0:01:56.4]}
31... Kf8 {[%clk 0:00:46.6]} 32. Nf3 {[%clk 0:01:49.8]} 32... Bg4 {[%clk
0:00:46.2]} 33. Bh6+ {[%clk 0:01:47.5]} 33... Ke7 {[%clk 0:00:40.7]} 34. Kf2
{[%clk 0:01:47]} 34... Rg6 {[%clk 0:00:37.9]} 35. Bd2 {[%clk 0:01:45.6]} 35...
Rf6 {[%clk 0:00:37.6]} 36. Kg3 {[%clk 0:01:45.2]} 36... Rxf3+ {[%clk 0:00:37]}
37. Kxg4 {[%clk 0:01:45.5]} 37... Rf2 {[%clk 0:00:37]} 38. Bg5+ {[%clk
0:01:43.4]} 38... Kf7 {[%clk 0:00:35.4]} 39. h4 {[%clk 0:01:41]} 39... Rxb2
{[%clk 0:00:32.5]} 40. a3 {[%clk 0:01:40.8]} 40... Rb3 {[%clk 0:00:29.8]} 41.
Bc1 {[%clk 0:01:40.5]} 41... Rxd3 {[%clk 0:00:28.9]} 42. h5 {[%clk 0:01:39.7]}
42... c4 {[%clk 0:00:28.9]} 43. a4 {[%clk 0:01:39.5]} 43... c3 {[%clk
0:00:28.7]} 44. h6 {[%clk 0:01:39]} 44... c2 {[%clk 0:00:28.7]} 45. Kf5 {[%clk
0:01:37.8]} 45... Rd1 {[%clk 0:00:28.7]} 46. Ba3 {[%clk 0:01:37.2]} 46... c1=Q
{[%clk 0:00:28]} 47. Bxc1 {[%clk 0:01:37.2]} 47... Rxc1 {[%clk 0:00:28.1]} 48.
Ke5 {[%clk 0:01:37.6]} 48... a6 {[%clk 0:00:23.1]} 49. Kxd5 {[%clk 0:01:38.5]}
49... b5 {[%clk 0:00:23]} 50. axb5 {[%clk 0:01:38.2]} 50... axb5 {[%clk
0:00:22.7]} 51. Kd4 {[%clk 0:01:38.9]} 51... b4 {[%clk 0:00:22.9]} 52. Kd3
{[%clk 0:01:39.2]} 52... b3 {[%clk 0:00:23.3]} 53. Kd2 {[%clk 0:01:39.7]} 53...
b2 {[%clk 0:00:23.6]} 54. Ke2 {[%clk 0:01:38.1]} 54... b1=Q {[%clk 0:00:23.1]}
0-1

[Event "Betsys MČR v online bleskovém šachu 2021"]
[Site "Chess.com"]
[Date "2021.04.17"]
[Round "13"]
[White "Hapinka"]
[Black "DavidZidlicky"]
[Result "1-0"]
[WhiteElo "1809"]
[BlackElo "1616"]
[TimeControl "180+1"]
[EndTime "11:10:17 PDT"]
[Termination "Uživatel Hapinka zvítězil po vzdání soupeře"]

1. e4 {[%clk 0:03:00.9]} 1... c5 {[%clk 0:02:56.8]} 2. Nf3 {[%clk 0:03:01.2]}
2... Nc6 {[%clk 0:02:56.7]} 3. d4 {[%clk 0:03:01.7]} 3... cxd4 {[%clk
0:02:56.7]} 4. Nxd4 {[%clk 0:03:02.3]} 4... e5 {[%clk 0:02:57]} 5. Nb5 {[%clk
0:03:00.1]} 5... a6 {[%clk 0:02:54.3]} 6. Nd6+ {[%clk 0:02:59.6]} 6... Bxd6
{[%clk 0:02:54.3]} 7. Qxd6 {[%clk 0:02:59.3]} 7... Qe7 {[%clk 0:02:54.4]} 8. Qd1
{[%clk 0:02:57.1]} 8... Nf6 {[%clk 0:02:51.9]} 9. Qf3 {[%clk 0:02:39.1]} 9...
Nd4 {[%clk 0:02:45.5]} 10. Qd3 {[%clk 0:02:33.2]} 10... O-O {[%clk 0:02:40.1]}
11. c3 {[%clk 0:02:32.5]} 11... Nc6 {[%clk 0:02:28.1]} 12. Bg5 {[%clk
0:02:31.4]} 12... Qe6 {[%clk 0:02:21.6]} 13. Be2 {[%clk 0:02:29.8]} 13... h6
{[%clk 0:02:20.2]} 14. Bh4 {[%clk 0:02:28.8]} 14... Nh7 {[%clk 0:02:19.9]} 15.
O-O {[%clk 0:02:27.3]} 15... b5 {[%clk 0:02:03.7]} 16. Nd2 {[%clk 0:02:26.5]}
16... Bb7 {[%clk 0:02:02.3]} 17. Nb3 {[%clk 0:02:25.7]} 17... d6 {[%clk
0:01:58.6]} 18. Rad1 {[%clk 0:02:24.9]} 18... g5 {[%clk 0:01:40.6]} 19. Bg3
{[%clk 0:02:24.2]} 19... Rad8 {[%clk 0:01:38.9]} 20. h3 {[%clk 0:02:22.2]} 20...
Nf6 {[%clk 0:01:35.2]} 21. f3 {[%clk 0:01:49.7]} 21... h5 {[%clk 0:01:30.2]} 22.
Bf2 {[%clk 0:01:49.1]} 22... g4 {[%clk 0:01:28.4]} 23. fxg4 {[%clk 0:01:45.9]}
23... hxg4 {[%clk 0:01:27.9]} 24. Qg3 {[%clk 0:01:37.3]} 24... Ne7 {[%clk
0:01:13.1]} 25. Bxg4 {[%clk 0:01:34.5]} 25... Nxg4 {[%clk 0:01:12.8]} 26. hxg4
{[%clk 0:01:28.9]} 26... Ng6 {[%clk 0:01:11.9]} 27. Be3 {[%clk 0:01:27.4]} 27...
Kg7 {[%clk 0:01:08.8]} 28. Qf3 {[%clk 0:01:21.2]} 28... Rh8 {[%clk 0:01:02.1]}
29. Bg5 {[%clk 0:01:16.8]} 29... Nf4 {[%clk 0:00:37.8]} 30. Bxd8 {[%clk
0:01:13.6]} 30... Rxd8 {[%clk 0:00:31.7]} 31. Nc5 {[%clk 0:01:06.1]} 31... Qe7
{[%clk 0:00:22.4]} 32. Nxb7 {[%clk 0:01:04.7]} 32... Qxb7 {[%clk 0:00:21.2]} 33.
g3 {[%clk 0:01:00.8]} 33... Ng6 {[%clk 0:00:15.9]} 34. Qf6+ {[%clk 0:00:57.3]}
34... Kg8 {[%clk 0:00:14.4]} 35. Qxd8+ {[%clk 0:00:56.8]} 1-0

[Event "Betsys MČR v online bleskovém šachu 2021"]
[Site "Chess.com"]
[Date "2021.04.17"]
[Round "13"]
[White "ikovacs"]
[Black "zaciname"]
[Result "0-1"]
[WhiteElo "1072"]
[BlackElo "772"]
[TimeControl "180+1"]
[EndTime "11:10:17 PDT"]
[Termination "Uživatel zaciname zvítězil na čas"]

1. d4 {[%clk 0:03:00.9]} 1... Nf6 {[%clk 0:02:58.6]} 2. e3 {[%clk 0:03:01]} 2...
e6 {[%clk 0:02:59]} 3. Nf3 {[%clk 0:02:59.9]} 3... d5 {[%clk 0:02:59]} 4. Bd3
{[%clk 0:02:58.5]} 4... c5 {[%clk 0:02:57.3]} 5. dxc5 {[%clk 0:02:57.5]} 5...
Bxc5 {[%clk 0:02:55.3]} 6. O-O {[%clk 0:02:57.7]} 6... Qc7 {[%clk 0:02:43.9]} 7.
a3 {[%clk 0:02:55]} 7... Bd7 {[%clk 0:02:42.9]} 8. b4 {[%clk 0:02:51]} 8... Bd6
{[%clk 0:02:42.8]} 9. Nbd2 {[%clk 0:02:46.6]} 9... Nc6 {[%clk 0:02:42.4]} 10. c4
{[%clk 0:02:40.6]} 10... dxc4 {[%clk 0:02:31.7]} 11. Nxc4 {[%clk 0:02:20.9]}
11... Ne5 {[%clk 0:02:30.9]} 12. Ncxe5 {[%clk 0:02:12.7]} 12... Bxe5 {[%clk
0:02:29.3]} 13. Nxe5 {[%clk 0:02:09.4]} 13... Qxe5 {[%clk 0:02:28.4]} 14. Bd2
{[%clk 0:02:01.4]} 14... O-O {[%clk 0:02:27.7]} 15. Rc1 {[%clk 0:01:51.5]} 15...
Rac8 {[%clk 0:02:27.6]} 16. Rxc8 {[%clk 0:01:49.6]} 16... Rxc8 {[%clk 0:02:27]}
17. g3 {[%clk 0:01:47]} 17... a6 {[%clk 0:02:15.7]} 18. Qf3 {[%clk 0:01:40.3]}
18... Bc6 {[%clk 0:02:02.5]} 19. Qf4 {[%clk 0:01:31]} 19... Qxf4 {[%clk
0:01:56.2]} 20. exf4 {[%clk 0:01:30.3]} 20... Rd8 {[%clk 0:01:56.3]} 21. Bxa6
{[%clk 0:01:14.3]} 21... Rxd2 {[%clk 0:01:52.4]} 22. Bc4 {[%clk 0:01:06.9]}
22... b5 {[%clk 0:01:49]} 23. Rc1 {[%clk 0:00:57]} 23... bxc4 {[%clk 0:01:41]}
24. Kf1 {[%clk 0:00:54.9]} 24... Bd5 {[%clk 0:01:30.2]} 25. b5 {[%clk
0:00:51.5]} 25... Rb2 {[%clk 0:01:28.7]} 26. a4 {[%clk 0:00:50.6]} 26... Rb4
{[%clk 0:01:25.4]} 27. a5 {[%clk 0:00:41.1]} 27... Rxb5 {[%clk 0:01:21.1]} 28.
a6 {[%clk 0:00:40.6]} 28... Rb8 {[%clk 0:01:20.4]} 29. a7 {[%clk 0:00:37.2]}
29... Ra8 {[%clk 0:01:20.6]} 30. Rb1 {[%clk 0:00:36.3]} 30... Nd7 {[%clk
0:01:13]} 31. Ke2 {[%clk 0:00:25.9]} 31... Rxa7 {[%clk 0:01:12.2]} 32. Ke3
{[%clk 0:00:22.4]} 32... g6 {[%clk 0:01:06.1]} 33. Kd4 {[%clk 0:00:20.8]} 33...
Kg7 {[%clk 0:01:05.7]} 0-1

[Event "Betsys MČR v online bleskovém šachu 2021"]
[Site "Chess.com"]
[Date "2021.04.17"]
[Round "13"]
[White "Figo5144"]
[Black "Newyork6"]
[Result "1-0"]
[WhiteElo "569"]
[BlackElo "323"]
[TimeControl "180+1"]
[EndTime "11:10:18 PDT"]
[Termination "Uživatel Figo5144 zvítězil po vzdání soupeře"]

1. e4 {[%clk 0:03:00.9]} 1... e6 {[%clk 0:02:54.9]} 2. d4 {[%clk 0:02:57.4]}
2... Be7 {[%clk 0:02:50.1]} 3. Nf3 {[%clk 0:02:54.5]} 3... Nf6 {[%clk
0:02:47.2]} 4. Nc3 {[%clk 0:02:52.1]} 4... Nxe4 {[%clk 0:02:41.7]} 5. Nxe4
{[%clk 0:02:50.9]} 5... f5 {[%clk 0:02:38.4]} 6. Nc3 {[%clk 0:02:49]} 6... e5
{[%clk 0:02:33.6]} 7. dxe5 {[%clk 0:02:46.6]} 7... d6 {[%clk 0:02:30.1]} 8. Bc4
{[%clk 0:02:30.6]} 8... dxe5 {[%clk 0:02:28.4]} 9. Nxe5 {[%clk 0:02:27.7]} 9...
Qxd1+ {[%clk 0:02:15.7]} 10. Nxd1 {[%clk 0:02:23.7]} 10... Bf6 {[%clk
0:02:15.1]} 11. Nd3 {[%clk 0:01:52.7]} 11... Nc6 {[%clk 0:02:16]} 12. O-O {[%clk
0:01:50.3]} 12... Nd4 {[%clk 0:02:13.5]} 13. Re1+ {[%clk 0:01:44.4]} 13... Kd8
{[%clk 0:01:57.7]} 14. Ne3 {[%clk 0:01:25]} 14... Re8 {[%clk 0:01:47.8]} 15. c3
{[%clk 0:01:07.3]} 15... Nc2 {[%clk 0:01:37.3]} 16. Nxc2 {[%clk 0:01:04.3]}
16... Rxe1+ {[%clk 0:01:31.4]} 17. Ncxe1 {[%clk 0:01:03.7]} 17... Bd7 {[%clk
0:01:24.5]} 18. Nc5 {[%clk 0:00:59.8]} 18... c6 {[%clk 0:01:24.3]} 19. Nxb7+
{[%clk 0:00:58.2]} 19... Kc7 {[%clk 0:01:23]} 20. Nc5 {[%clk 0:00:57]} 20... Re8
{[%clk 0:01:21.4]} 21. Bf4+ {[%clk 0:00:51.6]} 21... Kb6 {[%clk 0:01:09.6]} 22.
Nxd7+ {[%clk 0:00:50.4]} 22... Ka5 {[%clk 0:00:44.8]} 23. Nxf6 {[%clk 0:00:43]}
23... Rd8 {[%clk 0:00:39]} 24. b4+ {[%clk 0:00:37.6]} 24... Ka4 {[%clk
0:00:34.8]} 25. Bb3+ {[%clk 0:00:33.8]} 25... Kb5 {[%clk 0:00:30.9]} 26. Bc7
{[%clk 0:00:24.3]} 1-0